[Event "*** Titled Tuesday Blitz"]
[Site "Chess.com"]
[Date "2019.05.07"]
[Round "1"]
[White "Tash_Boy"]
[Black "MFguimaraes"]
[Result "1-0"]
[WhiteElo "2630"]
[BlackElo "2306"]
[TimeControl "180+2"]
[EndTime "13:12:02 PDT"]
[Termination "Tash_Boy won by resignation"]

1. e4 {[%clk 0:02:59.4]} 1... e5 {[%clk 0:02:59.4]} 2. Nf3 {[%clk 0:02:59.8]}
2... Nf6 {[%clk 0:03:00.3]} 3. d3 {[%clk 0:02:59.3]} 3... Nc6 {[%clk 0:03:00.1]}
4. Nbd2 {[%clk 0:03:01.2]} 4... Bc5 {[%clk 0:03:01]} 5. Be2 {[%clk 0:03:03.1]}
5... d6 {[%clk 0:03:02]} 6. c3 {[%clk 0:03:02.8]} 6... a5 {[%clk 0:03:02.6]} 7.
O-O {[%clk 0:03:03.3]} 7... O-O {[%clk 0:03:00]} 8. Qc2 {[%clk 0:03:04.1]} 8...
h6 {[%clk 0:03:00.8]} 9. h3 {[%clk 0:03:03.2]} 9... Re8 {[%clk 0:03:00.6]} 10.
Re1 {[%clk 0:03:03.7]} 10... d5 {[%clk 0:03:01.1]} 11. Nf1 {[%clk 0:03:04.4]}
11... dxe4 {[%clk 0:03:02]} 12. dxe4 {[%clk 0:03:06.3]} 12... Qe7 {[%clk
0:03:03.3]} 13. Ng3 {[%clk 0:03:06.7]} 13... Be6 {[%clk 0:03:03.6]} 14. Nh4
{[%clk 0:03:04.1]} 14... Qf8 {[%clk 0:03:03.1]} 15. Nhf5 {[%clk 0:03:04.2]}
15... Ne7 {[%clk 0:03:04.4]} 16. Ne3 {[%clk 0:03:01.2]} 16... Red8 {[%clk
0:03:03.3]} 17. a4 {[%clk 0:02:59.5]} 17... Nc8 {[%clk 0:03:01.3]} 18. Bd2
{[%clk 0:02:53.3]} 18... Nd6 {[%clk 0:03:01.6]} 19. Rad1 {[%clk 0:02:52.9]}
19... Nd7 {[%clk 0:03:02.3]} 20. Bc1 {[%clk 0:02:52.3]} 20... f6 {[%clk
0:03:02.3]} 21. Nd5 {[%clk 0:02:52.1]} 21... Rac8 {[%clk 0:03:00.1]} 22. Bg4
{[%clk 0:02:51]} 22... Qf7 {[%clk 0:03:00.4]} 23. Bxe6 {[%clk 0:02:50.6]} 23...
Qxe6 {[%clk 0:03:02.3]} 24. Qe2 {[%clk 0:02:50.7]} 24... c6 {[%clk 0:03:03.1]}
25. Ne3 {[%clk 0:02:49.2]} 25... Nb6 {[%clk 0:03:04.2]} 26. Qc2 {[%clk
0:02:44.7]} 26... Qa2 {[%clk 0:03:02.7]} 27. b4 {[%clk 0:02:37.6]} 27... Qxc2
{[%clk 0:02:55.7]} 28. Nxc2 {[%clk 0:02:39.5]} 28... Bxf2+ {[%clk 0:02:55.5]}
29. Kxf2 {[%clk 0:02:39.3]} 29... Nxa4 {[%clk 0:02:57.4]} 30. bxa5 {[%clk
0:02:28.2]} 30... Nxc3 {[%clk 0:02:57.6]} 31. Rd2 {[%clk 0:02:28.9]} 31... h5
{[%clk 0:02:57.7]} 32. h4 {[%clk 0:02:29]} 32... g5 {[%clk 0:02:58.3]} 33. Kf3
{[%clk 0:02:25.9]} 33... gxh4 {[%clk 0:02:58.6]} 34. Nxh5 {[%clk 0:02:26.7]}
34... Kf7 {[%clk 0:02:59.3]} 35. g4 {[%clk 0:02:10]} 35... hxg3 {[%clk
0:02:59.8]} 36. Nxg3 {[%clk 0:02:10.7]} 36... Ke6 {[%clk 0:03:00.4]} 37. Rf1
{[%clk 0:02:06.4]} 37... Nc4 {[%clk 0:02:59.4]} 38. Rxd8 {[%clk 0:02:02.8]}
38... Rxd8 {[%clk 0:03:01.3]} 39. Ne3 {[%clk 0:02:01.3]} 39... Rd3 {[%clk
0:03:00.6]} 40. Nf5 {[%clk 0:01:56.5]} 40... Nxa5 {[%clk 0:03:00.6]} 41. Rh1
{[%clk 0:01:55.1]} 41... Kd7 {[%clk 0:02:51.4]} 42. Rh6 {[%clk 0:01:51.8]} 42...
Nc4 {[%clk 0:02:48.6]} 43. Rxf6 {[%clk 0:01:51]} 43... b5 {[%clk 0:02:49.7]} 44.
Rf7+ {[%clk 0:01:47.7]} 44... Kd8 {[%clk 0:02:46]} 45. Rb7 {[%clk 0:01:37]}
45... Kc8 {[%clk 0:02:44.7]} 46. Re7 {[%clk 0:01:35.6]} 46... b4 {[%clk
0:02:44.2]} 47. Kg4 {[%clk 0:01:29.9]} 47... Nxe3+ {[%clk 0:02:43.3]} 48. Bxe3
{[%clk 0:01:29.3]} 48... b3 {[%clk 0:02:44.6]} 49. Bc1 {[%clk 0:01:14.2]} 49...
Nxe4 {[%clk 0:02:32.3]} 50. Rxe5 {[%clk 0:01:14.1]} 50... Nf2+ {[%clk
0:02:28.5]} 51. Kg5 {[%clk 0:01:14.3]} 51... Rd1 {[%clk 0:02:21.7]} 52. Ba3
{[%clk 0:01:13.9]} 52... Nd3 {[%clk 0:02:21.8]} 53. Re8+ {[%clk 0:01:10.6]}
53... Kc7 {[%clk 0:02:19.5]} 54. Bd6+ {[%clk 0:01:08.3]} 54... Kb6 {[%clk
0:02:18]} 55. Rb8+ {[%clk 0:01:08.7]} 55... Ka7 {[%clk 0:02:18.7]} 56. Rxb3
{[%clk 0:01:09.5]} 56... c5 {[%clk 0:02:14.4]} 57. Ne3 {[%clk 0:01:01.6]} 57...
Ka6 {[%clk 0:02:06.9]} 58. Kf5 {[%clk 0:00:58.4]} 58... Nc1 {[%clk 0:01:56.1]}
59. Ra3+ {[%clk 0:00:53.9]} 59... Kb5 {[%clk 0:01:57.3]} 60. Be5 {[%clk
0:00:50.7]} 60... Rd3 {[%clk 0:01:54.6]} 61. Ra1 {[%clk 0:00:45.2]} 61... Nb3
{[%clk 0:01:52.8]} 62. Re1 {[%clk 0:00:44.2]} 62... c4 {[%clk 0:01:45.1]} 63.
Nc2 {[%clk 0:00:42.5]} 63... Rd2 {[%clk 0:01:34.6]} 64. Ne3 {[%clk 0:00:40.8]}
64... Rd3 {[%clk 0:01:27.6]} 65. Kf4 {[%clk 0:00:39.9]} 65... c3 {[%clk
0:01:27.9]} 66. Rb1 {[%clk 0:00:39.2]} 66... Ka4 {[%clk 0:01:25]} 67. Rh1 {[%clk
0:00:24.1]} 67... Nd2 {[%clk 0:01:10.1]} 68. Rh8 {[%clk 0:00:13.6]} 68... Kb3
{[%clk 0:00:48]} 69. Rb8+ {[%clk 0:00:13.2]} 69... Ka2 {[%clk 0:00:48.9]} 70.
Nc2 {[%clk 0:00:09.2]} 70... Rf3+ {[%clk 0:00:39.9]} 71. Kg4 {[%clk 0:00:10.1]}
71... Rf1 {[%clk 0:00:31.2]} 72. Bf4 {[%clk 0:00:09.1]} 72... Nb3 {[%clk
0:00:29.8]} 73. Nb4+ {[%clk 0:00:08.5]} 73... Kb2 {[%clk 0:00:28.3]} 74. Be5
{[%clk 0:00:09.3]} 74... Re1 {[%clk 0:00:19.9]} 75. Kf5 {[%clk 0:00:09.4]} 75...
Re3 {[%clk 0:00:17.6]} 76. Nd5 {[%clk 0:00:09.6]} 76... Rh3 {[%clk 0:00:18.3]}
77. Kg4 {[%clk 0:00:09.6]} 77... Rd3 {[%clk 0:00:18.6]} 78. Rb5 {[%clk
0:00:08.2]} 78... Kc2 {[%clk 0:00:13.2]} 79. Nb4+ {[%clk 0:00:08.7]} 79... Kd2
{[%clk 0:00:12.6]} 80. Nxd3 {[%clk 0:00:10.6]} 80... c2 {[%clk 0:00:09.1]} 81.
Rxb3 {[%clk 0:00:11]} 1-0

[Event "*** Titled Tuesday Blitz"]
[Site "Chess.com"]
[Date "2019.05.07"]
[Round "1"]
[White "platy3"]
[Black "2nd_life"]
[Result "1-0"]
[WhiteElo "2760"]
[BlackElo "2401"]
[TimeControl "180+2"]
[EndTime "13:12:43 PDT"]
[Termination "platy3 won on time"]

1. e4 {[%clk 0:02:50.4]} 1... e5 {[%clk 0:02:59.2]} 2. Nf3 {[%clk 0:02:47.3]}
2... Nc6 {[%clk 0:03:00.3]} 3. Bb5 {[%clk 0:02:48.3]} 3... a6 {[%clk 0:03:01.4]}
4. Ba4 {[%clk 0:02:49.6]} 4... Nf6 {[%clk 0:03:02.5]} 5. O-O {[%clk 0:02:51.2]}
5... Be7 {[%clk 0:03:03.8]} 6. Re1 {[%clk 0:02:52.6]} 6... b5 {[%clk 0:03:05]}
7. Bb3 {[%clk 0:02:53.8]} 7... d6 {[%clk 0:03:06.4]} 8. c3 {[%clk 0:02:55.1]}
8... O-O {[%clk 0:03:05.7]} 9. h3 {[%clk 0:02:56.5]} 9... Bb7 {[%clk 0:03:06.8]}
10. d4 {[%clk 0:02:56.6]} 10... Re8 {[%clk 0:03:08.1]} 11. Nbd2 {[%clk
0:02:57.6]} 11... Bf8 {[%clk 0:03:08.8]} 12. a4 {[%clk 0:02:53.6]} 12... h6
{[%clk 0:03:08.6]} 13. Bc2 {[%clk 0:02:53.8]} 13... exd4 {[%clk 0:03:08.5]} 14.
cxd4 {[%clk 0:02:55.7]} 14... Nb4 {[%clk 0:03:09.5]} 15. Bb1 {[%clk 0:02:56.9]}
15... c5 {[%clk 0:03:08]} 16. d5 {[%clk 0:02:58]} 16... Nd7 {[%clk 0:03:01.3]}
17. Ra3 {[%clk 0:02:57.5]} 17... c4 {[%clk 0:02:45.8]} 18. Ree3 {[%clk
0:02:32.9]} 18... Nc5 {[%clk 0:02:17.6]} 19. b3 {[%clk 0:02:30.3]} 19... cxb3
{[%clk 0:01:47.2]} 20. axb5 {[%clk 0:02:29.8]} 20... Nc2 {[%clk 0:01:39.2]} 21.
Bxc2 {[%clk 0:02:30.4]} 21... bxc2 {[%clk 0:01:40]} 22. Qxc2 {[%clk 0:02:32.3]}
22... axb5 {[%clk 0:01:41.4]} 23. Qb1 {[%clk 0:02:18.5]} 23... Ba6 {[%clk
0:01:02.9]} 24. Qb4 {[%clk 0:02:04.9]} 24... Qd7 {[%clk 0:00:45.5]} 25. Bb2
{[%clk 0:01:59.4]} 25... f5 {[%clk 0:00:41.7]} 26. exf5 {[%clk 0:01:51.5]} 26...
Qxf5 {[%clk 0:00:39.4]} 27. Qd4 {[%clk 0:01:28]} 27... b4 {[%clk 0:00:32.2]} 28.
Qxb4 {[%clk 0:01:23.2]} 28... Qxd5 {[%clk 0:00:32.2]} 29. Qg4 {[%clk 0:01:15.5]}
29... Rxe3 {[%clk 0:00:24.8]} 30. Rxe3 {[%clk 0:01:13.4]} 30... Bc8 {[%clk
0:00:21.2]} 31. Qg3 {[%clk 0:01:07.2]} 31... Bf5 {[%clk 0:00:16.8]} 32. Re7
{[%clk 0:01:02]} 32... Ne6 {[%clk 0:00:09.6]} 33. Rd7 {[%clk 0:00:49.2]} 33...
Ng5 {[%clk 0:00:05.5]} 34. Bxg7 {[%clk 0:00:38.4]} 34... Bxd7 {[%clk 0:00:04.6]}
35. Bxf8 {[%clk 0:00:33.6]} 35... Kxf8 {[%clk 0:00:04]} 36. Qf4+ {[%clk
0:00:27.7]} 36... Kg7 {[%clk 0:00:05.2]} 37. h4 {[%clk 0:00:24.9]} 37... Ra1+
{[%clk 0:00:05.7]} 38. Kh2 {[%clk 0:00:25.9]} 38... Nxf3+ {[%clk 0:00:07.2]} 39.
Nxf3 {[%clk 0:00:27.8]} 39... Qf5 {[%clk 0:00:08.4]} 40. Qxd6 {[%clk 0:00:25.1]}
40... Ra2 {[%clk 0:00:09.3]} 41. Qe7+ {[%clk 0:00:25.1]} 41... Qf7 {[%clk
0:00:09.8]} 42. Qe5+ {[%clk 0:00:26]} 42... Kh7 {[%clk 0:00:11.2]} 43. Qe4+
{[%clk 0:00:25.6]} 43... Bf5 {[%clk 0:00:12.2]} 44. Qf4 {[%clk 0:00:22.1]} 44...
Ra7 {[%clk 0:00:12.4]} 45. Qe3 {[%clk 0:00:18.7]} 45... Qc7+ {[%clk 0:00:12.8]}
46. g3 {[%clk 0:00:19.5]} 46... Qe7 {[%clk 0:00:12]} 47. Qf4 {[%clk 0:00:20.2]}
47... Be4 {[%clk 0:00:12.9]} 48. Ne5 {[%clk 0:00:20.7]} 48... Bg6 {[%clk
0:00:09.9]} 49. Ng4 {[%clk 0:00:19.9]} 49... Qg7 {[%clk 0:00:08.6]} 50. Nf6+
{[%clk 0:00:20.6]} 50... Qxf6 {[%clk 0:00:04.2]} 51. Qxf6 {[%clk 0:00:21.5]}
51... Rf7 {[%clk 0:00:06.1]} 52. Qd4 {[%clk 0:00:21.8]} 52... h5 {[%clk
0:00:07.5]} 53. Kg2 {[%clk 0:00:22.3]} 53... Bf5 {[%clk 0:00:08.3]} 54. f3
{[%clk 0:00:22.9]} 54... Bg6 {[%clk 0:00:09.3]} 55. g4 {[%clk 0:00:22.4]} 55...
Rg7 {[%clk 0:00:08.6]} 56. Kg3 {[%clk 0:00:22.2]} 56... Rf7 {[%clk 0:00:08.7]}
57. Qe5 {[%clk 0:00:22]} 57... Rg7 {[%clk 0:00:08.3]} 58. Kh3 {[%clk 0:00:19.2]}
58... Bf7 {[%clk 0:00:08.2]} 59. g5 {[%clk 0:00:15.4]} 59... Bg6 {[%clk
0:00:09]} 60. f4 {[%clk 0:00:16.7]} 60... Rf7 {[%clk 0:00:10.3]} 61. Kg3 {[%clk
0:00:18.1]} 61... Rf5 {[%clk 0:00:10.9]} 62. Qe6 {[%clk 0:00:19.4]} 62... Rf7
{[%clk 0:00:12.2]} 63. Kf3 {[%clk 0:00:20.3]} 63... Rf5 {[%clk 0:00:13.3]} 64.
Ke3 {[%clk 0:00:20.1]} 64... Rf7 {[%clk 0:00:14.8]} 65. Qe5 {[%clk 0:00:20.7]}
65... Rf5 {[%clk 0:00:15.9]} 66. Qd6 {[%clk 0:00:21.9]} 66... Rf7 {[%clk
0:00:17.1]} 67. Kd4 {[%clk 0:00:22.9]} 67... Rf5 {[%clk 0:00:17.3]} 68. Ke3
{[%clk 0:00:16.4]} 68... Rf7 {[%clk 0:00:18.1]} 69. Qb8 {[%clk 0:00:15.1]} 69...
Rf5 {[%clk 0:00:18.8]} 70. Kd4 {[%clk 0:00:16.3]} 70... Rf7 {[%clk 0:00:19.6]}
71. Ke5 {[%clk 0:00:16.6]} 71... Re7+ {[%clk 0:00:21]} 72. Kf6 {[%clk
0:00:16.2]} 72... Rf7+ {[%clk 0:00:22.9]} 73. Ke6 {[%clk 0:00:17.6]} 73... Kg7
{[%clk 0:00:22.5]} 74. Qb2+ {[%clk 0:00:17.5]} 74... Kh7 {[%clk 0:00:23.6]} 75.
Qb8 {[%clk 0:00:18]} 75... Kg7 {[%clk 0:00:24.7]} 76. Qe5+ {[%clk 0:00:18.8]}
76... Kh7 {[%clk 0:00:26]} 77. f5 {[%clk 0:00:17.7]} 77... Rxf5 {[%clk 0:00:27]}
78. Qxf5 {[%clk 0:00:18.1]} 78... Bxf5+ {[%clk 0:00:28.4]} 79. Kxf5 {[%clk
0:00:19.1]} 79... Kg7 {[%clk 0:00:29.9]} 80. Ke6 {[%clk 0:00:11.4]} 80... Kg6
{[%clk 0:00:29.7]} 81. Kd7 {[%clk 0:00:10.3]} 81... Kf7 {[%clk 0:00:26.4]} 82.
Kd8 {[%clk 0:00:11.2]} 82... Kf8 {[%clk 0:00:23.9]} 83. Kd7 {[%clk 0:00:12.5]}
83... Kf7 {[%clk 0:00:25.2]} 84. Kd6 {[%clk 0:00:13.9]} 84... Kg7 {[%clk
0:00:17.5]} 85. Ke5 {[%clk 0:00:13.8]} 85... Kf7 {[%clk 0:00:17.3]} 86. Kf5
{[%clk 0:00:13.4]} 86... Kg7 {[%clk 0:00:18.7]} 87. Kf4 {[%clk 0:00:09.1]} 87...
Kg6 {[%clk 0:00:19]} 88. Ke4 {[%clk 0:00:10.1]} 88... Kh7 {[%clk 0:00:15.4]} 89.
Ke5 {[%clk 0:00:09.3]} 89... Kg6 {[%clk 0:00:15.3]} 90. Ke6 {[%clk 0:00:10.6]}
90... Kg7 {[%clk 0:00:09.2]} 91. Kf5 {[%clk 0:00:11.6]} 91... Kh7 {[%clk
0:00:03.7]} 92. Kf6 {[%clk 0:00:12.3]} 1-0

[Event "*** Titled Tuesday Blitz"]
[Site "Chess.com"]
[Date "2019.05.07"]
[Round "1"]
[White "STAYFlow"]
[Black "1random"]
[Result "1/2-1/2"]
[WhiteElo "2365"]
[BlackElo "2690"]
[TimeControl "180+2"]
[EndTime "13:13:05 PDT"]
[Termination "Game drawn by 50-move rule"]

1. d4 {[%clk 0:03:01.4]} 1... Nf6 {[%clk 0:02:58.6]} 2. c4 {[%clk 0:03:01.8]}
2... d5 {[%clk 0:02:55.7]} 3. cxd5 {[%clk 0:02:45.8]} 3... c5 {[%clk 0:02:56.6]}
4. dxc5 {[%clk 0:02:45.7]} 4... e6 {[%clk 0:02:53.9]} 5. dxe6 {[%clk 0:02:44.5]}
5... Qxd1+ {[%clk 0:02:54.2]} 6. Kxd1 {[%clk 0:02:46]} 6... Bxe6 {[%clk
0:02:55]} 7. e3 {[%clk 0:02:32.5]} 7... Bxc5 {[%clk 0:02:48.4]} 8. Bb5+ {[%clk
0:02:32.4]} 8... Nc6 {[%clk 0:02:49.5]} 9. Nf3 {[%clk 0:02:23]} 9... O-O-O+
{[%clk 0:02:41.5]} 10. Ke2 {[%clk 0:02:22]} 10... a6 {[%clk 0:02:37.8]} 11. Bxc6
{[%clk 0:02:16.5]} 11... Bc4+ {[%clk 0:02:38.9]} 12. Ke1 {[%clk 0:02:16.8]}
12... bxc6 {[%clk 0:02:39.9]} 13. b3 {[%clk 0:02:15.5]} 13... Bb5 {[%clk
0:02:34.7]} 14. Nbd2 {[%clk 0:02:02.7]} 14... Bb4 {[%clk 0:02:29.2]} 15. a3
{[%clk 0:02:01]} 15... Bc3 {[%clk 0:02:26.2]} 16. Ra2 {[%clk 0:01:58.4]} 16...
Bd3 {[%clk 0:02:24.1]} 17. Bb2 {[%clk 0:01:57.4]} 17... Bb1 {[%clk 0:02:12.6]}
18. Bxc3 {[%clk 0:01:51.9]} 18... Bxa2 {[%clk 0:02:11.7]} 19. Ke2 {[%clk
0:01:53.2]} 19... Nd5 {[%clk 0:02:00.6]} 20. Ba5 {[%clk 0:01:45.4]} 20... Rde8
{[%clk 0:01:36.9]} 21. Ra1 {[%clk 0:01:46.7]} 21... Bxb3 {[%clk 0:01:33.2]} 22.
Nxb3 {[%clk 0:01:46.9]} 22... Kb7 {[%clk 0:01:28.5]} 23. Rb1 {[%clk 0:01:41.6]}
23... Ka7 {[%clk 0:01:29.6]} 24. Nbd4 {[%clk 0:01:38.1]} 24... Ne7 {[%clk
0:01:23.4]} 25. Bb6+ {[%clk 0:01:32.9]} 25... Ka8 {[%clk 0:01:23.9]} 26. a4
{[%clk 0:01:33]} 26... Rb8 {[%clk 0:01:20]} 27. a5 {[%clk 0:01:32.6]} 27... Rhc8
{[%clk 0:01:20.5]} 28. Rc1 {[%clk 0:01:26.1]} 28... Nd5 {[%clk 0:01:16.9]} 29.
Rxc6 {[%clk 0:01:18]} 29... Nxb6 {[%clk 0:01:13.7]} 30. Rxb6 {[%clk 0:01:08.5]}
30... Rxb6 {[%clk 0:01:14.9]} 31. axb6 {[%clk 0:01:10.4]} 31... Kb7 {[%clk
0:01:13.5]} 32. Ne5 {[%clk 0:01:05.3]} 32... a5 {[%clk 0:01:02.7]} 33. Kd3
{[%clk 0:01:03.3]} 33... Kxb6 {[%clk 0:00:57.2]} 34. Nc4+ {[%clk 0:00:53.5]}
34... Ka6 {[%clk 0:00:58]} 35. Kc3 {[%clk 0:00:53.6]} 35... f6 {[%clk
0:00:46.3]} 36. Nf5 {[%clk 0:00:36.7]} 36... Rc7 {[%clk 0:00:45.5]} 37. Nd6
{[%clk 0:00:35]} 37... Rc6 {[%clk 0:00:31.7]} 38. Kb3 {[%clk 0:00:35.1]} 38...
Rc7 {[%clk 0:00:31.6]} 39. Ka4 {[%clk 0:00:35.4]} 39... Rc5 {[%clk 0:00:32.4]}
40. e4 {[%clk 0:00:34.3]} 40... Rc6 {[%clk 0:00:32.2]} 41. f4 {[%clk 0:00:35.1]}
41... g5 {[%clk 0:00:32.6]} 42. e5 {[%clk 0:00:31.4]} 42... fxe5 {[%clk
0:00:31.7]} 43. fxe5 {[%clk 0:00:32.2]} 43... Rc7 {[%clk 0:00:32.7]} 44. Nxa5
{[%clk 0:00:25.5]} 44... Rc2 {[%clk 0:00:27.5]} 45. Nb3 {[%clk 0:00:21.1]} 45...
Rxg2 {[%clk 0:00:24.1]} 46. e6 {[%clk 0:00:22.2]} 46... Re2 {[%clk 0:00:22.4]}
47. Ne4 {[%clk 0:00:21.4]} 47... Kb6 {[%clk 0:00:17.4]} 48. Nbc5 {[%clk
0:00:20.6]} 48... Rxh2 {[%clk 0:00:13.1]} 49. e7 {[%clk 0:00:21.8]} 49... Ra2+
{[%clk 0:00:13.8]} 50. Kb4 {[%clk 0:00:20.6]} 50... Ra8 {[%clk 0:00:15.4]} 51.
Nxg5 {[%clk 0:00:20.4]} 51... Re8 {[%clk 0:00:15.3]} 52. Nxh7 {[%clk 0:00:17.8]}
52... Rxe7 {[%clk 0:00:15.9]} 53. Nf6 {[%clk 0:00:18.6]} 53... Rf7 {[%clk
0:00:15.6]} 54. Nd5+ {[%clk 0:00:19.4]} 54... Kc6 {[%clk 0:00:17]} 55. Nc3
{[%clk 0:00:18.1]} 55... Rf4+ {[%clk 0:00:16.5]} 56. N3e4 {[%clk 0:00:19.5]}
56... Kd5 {[%clk 0:00:17.7]} 57. Kb5 {[%clk 0:00:20.1]} 57... Rf1 {[%clk
0:00:17.6]} 58. Kb6 {[%clk 0:00:21.1]} 58... Rb1+ {[%clk 0:00:17.8]} 59. Kc7
{[%clk 0:00:22.5]} 59... Rb2 {[%clk 0:00:19]} 60. Kd7 {[%clk 0:00:23.6]} 60...
Rh2 {[%clk 0:00:20.2]} 61. Kc7 {[%clk 0:00:24.7]} 61... Rh1 {[%clk 0:00:20.6]}
62. Kd7 {[%clk 0:00:25.8]} 62... Rh7+ {[%clk 0:00:21.8]} 63. Ke8 {[%clk
0:00:25]} 63... Kc6 {[%clk 0:00:23.2]} 64. Kf8 {[%clk 0:00:24.9]} 64... Ra7
{[%clk 0:00:24.5]} 65. Ke8 {[%clk 0:00:20.6]} 65... Kd5 {[%clk 0:00:25.8]} 66.
Kf8 {[%clk 0:00:20.9]} 66... Ke5 {[%clk 0:00:27.2]} 67. Ke8 {[%clk 0:00:22]}
67... Kf5 {[%clk 0:00:28.4]} 68. Kd8 {[%clk 0:00:23.1]} 68... Kg6 {[%clk
0:00:28.5]} 69. Kc8 {[%clk 0:00:23.2]} 69... Kf7 {[%clk 0:00:29]} 70. Kb8 {[%clk
0:00:24]} 70... Re7 {[%clk 0:00:30.1]} 71. Nd6+ {[%clk 0:00:24.9]} 71... Kf8
{[%clk 0:00:28.9]} 72. Ndb7 {[%clk 0:00:25.3]} 72... Ke8 {[%clk 0:00:29.3]} 73.
Ka7 {[%clk 0:00:26.4]} 73... Re1 {[%clk 0:00:29.2]} 74. Kb6 {[%clk 0:00:26.2]}
74... Kf7 {[%clk 0:00:28.4]} 75. Kc6 {[%clk 0:00:27.1]} 75... Ke7 {[%clk
0:00:29.2]} 76. Kd5 {[%clk 0:00:27.1]} 76... Rd1+ {[%clk 0:00:29.9]} 77. Kc4
{[%clk 0:00:27.8]} 77... Kf6 {[%clk 0:00:30.6]} 78. Kb5 {[%clk 0:00:27.4]} 78...
Ke5 {[%clk 0:00:29.7]} 79. Kc4 {[%clk 0:00:28.6]} 79... Rc1+ {[%clk 0:00:30.2]}
80. Kb5 {[%clk 0:00:29.7]} 80... Kd5 {[%clk 0:00:31.3]} 81. Kb6 {[%clk
0:00:28.8]} 81... Rb1+ {[%clk 0:00:29.3]} 82. Kc7 {[%clk 0:00:30.2]} 82... Rb5
{[%clk 0:00:28.9]} 83. Kd7 {[%clk 0:00:31]} 83... Rb6 {[%clk 0:00:23.7]} 84. Kc7
{[%clk 0:00:31]} 84... Rh6 {[%clk 0:00:23.1]} 85. Kd7 {[%clk 0:00:28.6]} 85...
Rh7+ {[%clk 0:00:23.8]} 86. Ke8 {[%clk 0:00:29.5]} 86... Kc6 {[%clk 0:00:17.2]}
87. Kf8 {[%clk 0:00:28.2]} 87... Rc7 {[%clk 0:00:17.5]} 88. Ke8 {[%clk
0:00:28.7]} 88... Kd5 {[%clk 0:00:18.2]} 89. Kd8 {[%clk 0:00:29.5]} 89... Rf7
{[%clk 0:00:18.5]} 90. Ke8 {[%clk 0:00:30.8]} 90... Rf5 {[%clk 0:00:18.4]} 91.
Kd7 {[%clk 0:00:31.4]} 91... Re5 {[%clk 0:00:17.4]} 92. Kc7 {[%clk 0:00:31.6]}
92... Rf5 {[%clk 0:00:17.4]} 93. Kd7 {[%clk 0:00:32.5]} 93... Rf7+ {[%clk
0:00:18.6]} 94. Ke8 {[%clk 0:00:33.5]} 94... Rf6 {[%clk 0:00:19.3]} 95. Ke7
{[%clk 0:00:33.5]} 95... Rg6 {[%clk 0:00:16.8]} 96. Kd7 {[%clk 0:00:33.9]} 96...
Rg7+ {[%clk 0:00:15.1]} 97. Ke8 {[%clk 0:00:34.8]} 97... Kc6 {[%clk 0:00:16.4]}
98. Kf8 {[%clk 0:00:35.7]} 98... Rc7 {[%clk 0:00:17.3]} 99. Ke8 {[%clk
0:00:36.6]} 99... Kb6 {[%clk 0:00:17.7]} 100. Kd8 {[%clk 0:00:36.1]} 100... Rh7
{[%clk 0:00:18.7]} 101. Ke8 {[%clk 0:00:36.7]} 101... Ka7 {[%clk 0:00:19.8]}
102. Kf8 {[%clk 0:00:36.8]} 102... Ka8 {[%clk 0:00:21.3]} 103. Kg8 {[%clk
0:00:38]} 103... Rc7 {[%clk 0:00:22.4]} 104. Kf8 {[%clk 0:00:36.7]} 104... Ka7
{[%clk 0:00:19.9]} 105. Ke8 {[%clk 0:00:36.8]} 1/2-1/2